bitfinex-derivatives/quotes_ETHF0:USTF0_20240910
["timestamp","ask_amount","ask_price","bid_price","bid_amount"]
[1725983521797,0.3833,2330.9,2330.8,0.02754889]
[1725983522008,0.81229,2330.9,2330.8,0.02754889]
[1725983522206,4.5016,2331.1,2330.8,0.45654889]
[1725983522413,4.9039,2331.4,2330.8,0.02754889]
[1725983522600,4.9039,2331.4,2330.9,0.02754889]
[1725983522601,0.4006,2331.4,2330.9,0.02754889]
[1725983522800,0.42897,2331.0,2330.9,0.02754889]
[1725983523116,4.12,2331.2,2330.9,0.02754889]
[1725983523608,0.42896,2331.1,2331.0,0.02754889]
[1725983523808,4.12,2331.2,2331.0,0.02754889]
[1725983524001,4.54894,2331.2,2331.1,0.01822911]
[1725983524407,15.91089,2331.2,2331.0,0.02754889]
[1725983524711,15.91089,2331.2,2330.1,0.216]
[1725983524712,5.78947303,2331.1,2330.1,0.216]
[1725983524903,4.54906,2330.6,2330.0,0.21597229]
[1725983525098,4.54906,2330.6,2330.1,0.51474084]
[1725983525305,4.54906,2330.6,2330.3,0.4291]
[1725983525611,0.82854,2330.7,2330.4,0.42908]
[1725983525816,0.3995,2330.7,2330.0,41.01127304]
[1725983526109,0.3792,2331.1,2330.3,1.07276]
[1725983526304,0.3792,2331.1,2330.8,0.42901]
[1725983526609,4.4992,2331.1,2330.4,0.7829]
[1725983526815,0.429,2330.9,2330.5,0.42905]
[1725983527313,0.42902,2330.8,2330.4,0.81908]
[1725983527503,0.42903,2330.7,2330.4,0.39]
[1725983527808,1.07244,2331.0,2330.4,0.39]
[1725983527809,0.42902,2330.8,2330.4,0.42907]
[1725983528007,12.31477405,2331.0,2330.4,0.42907]
[1725983528311,4.12,2330.8,2330.0,41.37727304]
[1725983528612,0.42907,2330.5,2330.2,0.42911]
[1725983528807,0.3726,2330.4,2330.2,0.42912]
[1725983529007,0.3726,2330.4,2330.0,41.0101787]
[1725983529008,0.7746,2330.4,2330.0,40.8]
[1725983529204,1.20369,2330.4,2330.1,0.42913]
[1725983529411,0.7746,2330.4,2330.2,0.42912]
[1725983529607,0.402,2330.4,2330.0,41.01118116]
[1725983529808,0.402,2330.4,2330.3,0.4291]
[1725983530417,0.7746,2330.7,2330.0,41.01118116]
[1725983530709,0.7746,2330.7,2330.2,0.42911]
[1725983530911,0.7746,2330.7,2330.0,40.8]
[1725983531113,0.4291,2330.4,2330.0,40.8]
[1725983531310,1.07263,2330.6,2330.0,41.22915]
[1725983531518,0.3779,2330.5,2330.0,41.01772625]
[1725983531820,0.42911,2330.3,2330.0,41.22915]
[1725983532016,0.3779,2330.5,2330.0,41.01040862]
[1725983532213,0.7746,2330.7,2330.1,0.51473683]
[1725983532416,1.20364,2330.7,2330.4,0.42908]
[1725983532819,1.20364,2330.7,2330.0,42.08327862]
[1725983532820,0.7746,2330.7,2330.3,0.42909]
[1725983533115,0.7746,2330.7,2330.2,0.42911]
[1725983533312,0.42907,2330.5,2330.2,0.42911]
[1725983533515,0.7746,2330.7,2330.0,41.01040862]
[1725983533516,0.42909,2330.4,2330.0,41.01040862]
[1725983533717,1.84721,2330.7,2330.2,0.42912]
[1725983534017,0.42907,2330.5,2330.2,0.42912]
[1725983534715,0.42908,2330.4,2330.3,0.5147471]
[1725983534920,1.07267,2330.5,2330.0,41.22915]
[1725983535112,0.42911,2330.3,2330.1,0.51476013]
[1725983535315,0.42911,2330.3,2330.2,0.51476013]
[1725983535512,5.79307,2330.3,2330.2,0.51476013]
[1725983535712,0.42912,2330.2,2329.9,0.42918]
[1725983536016,0.42912,2330.2,2330.0,0.51478791]
[1725983536017,0.42915,2330.1,2330.0,0.51478791]
[1725983536406,0.393,2330.2,2330.0,0.51478791]
[1725983536613,0.82213,2330.2,2330.1,0.51478791]
[1725983536816,0.393,2330.2,2330.1,0.94392791]
[1725983537009,0.82212,2330.2,2330.1,0.51478791]
[1725983537615,0.82212,2330.2,2330.0,0.42915]
[1725983537812,0.42914,2330.1,2330.0,0.42915]
[1725983538010,1.50218,2329.8,2329.7,40.8]
[1725983538211,1.50218,2329.8,2328.8,1.10338987]
[1725983538212,1.07309,2329.6,2328.8,1.10338987]
[1725983538413,1.07309,2329.6,2328.5,2.75847468]
[1725983538414,0.42931,2329.2,2328.9,2.6890545]
[1725983538614,6.31006823,2329.5,2329.0,0.51490923]
[1725983538615,4.54933,2329.1,2329.0,0.51490923]
[1725983538813,4.5493,2329.3,2329.0,0.42933]
[1725983539014,4.522,2329.3,2328.7,40.8]
[1725983539321,0.80812,2329.2,2328.9,0.42935]
[1725983539511,0.80812,2329.2,2328.9,0.42936]
[1725983539512,0.80811,2329.2,2328.9,0.42936]
[1725983539714,0.3788,2329.2,2329.0,0.42934]
[1725983539916,0.3788,2329.2,2328.6,41.01302445]
[1725983540126,5.23689823,2329.6,2328.7,1.17645452]
[1725983540419,1.11689823,2329.8,2328.8,3.3236244]
[1725983540620,1.89769823,2329.9,2329.6,0.42923]
[1725983540818,1.49569823,2329.9,2329.0,2.14706988]
[1725983541021,1.11689823,2329.9,2329.1,2.65273413]
[1725983541324,5.23689823,2329.9,2329.3,0.42929]
[1725983541624,5.23689823,2329.9,2329.1,0.403]
[1725983541818,0.42922,2329.7,2329.3,0.42928]
[1725983542009,0.42923,2329.6,2329.2,0.4293]
[1725983542209,0.80923,2329.6,2329.2,0.4293]
[1725983543024,0.80924,2329.6,2329.2,0.4293]
[1725983543524,0.42926,2329.5,2329.1,0.42932]
[1725983544022,0.80924,2329.6,2329.2,0.4293]
[1725983544222,0.38,2329.6,2328.9,0.7567]
[1725983544422,4.12,2329.9,2328.9,0.7567]
[1725983544423,4.12,2329.9,2329.0,0.67100128]
[1725983544618,1.54606823,2330.0,2329.6,0.42922]
[1725983544813,1.11689823,2330.0,2329.2,0.67095099]
[1725983545011,1.54605823,2330.0,2329.6,0.42922]
[1725983545216,1.54605823,2330.0,2329.7,41.22921]
[1725983545217,1.11689823,2330.0,2329.7,41.22921]
[1725983545415,1.11689823,2330.0,2329.7,40.8]
[1725983545821,0.42919,2329.8,2329.7,40.8]
[1725983546221,4.54919,2329.9,2329.5,0.42924]
[1725983546730,4.54919,2329.9,2329.5,41.22924]
[1725983546924,4.12,2329.6,2328.9,0.42936]
[1725983547124,0.7775,2329.5,2329.0,0.67093295]
[1725983547327,0.4293,2329.3,2328.9,0.42934]
[1725983547519,0.42929,2329.3,2329.0,0.93455709]
[1725983547719,0.7775,2329.5,2329.1,0.42932]
[1725983547932,0.7775,2329.5,2329.0,0.42933]
[1725983548129,0.42929,2329.3,2328.7,41.5541]
[1725983548317,0.42929,2329.3,2328.8,0.50527653]
[1725983548318,5.19326,2329.3,2328.8,0.50527653]
[1725983548517,0.42937,2328.9,2328.6,0.4294]
[1725983548825,5.19339,2329.0,2328.3,0.381]
[1725983549124,4.12,2328.4,2327.9,0.21761724]
[1725983549325,1.07355,2328.6,2327.8,40.8]
[1725983549326,4.12,2328.1,2327.8,40.8]
[1725983549628,0.42956,2327.9,2327.5,1.31603129]
[1725983549821,4.12,2327.9,2327.7,0.42957]
[1725983550020,4.8843,2328.2,2327.4,40.8]
[1725983550430,5.3138,2328.2,2327.8,0.03390149]
[1725983550722,4.8843,2328.2,2327.8,0.03390149]
[1725983550927,0.42952,2328.1,2327.8,0.03390149]
[1725983551122,0.42954,2328.0,2327.8,0.03390149]
[1725983551426,0.42954,2328.0,2327.4,40.8]
[1725983551427,4.51564851,2327.9,2327.4,0.42963]
[1725983551727,4.8843,2328.2,2327.6,0.02858742]
[1725983551920,4.8843,2328.2,2327.7,0.42957]
[1725983551921,5.3138,2328.2,2327.7,0.42957]
[1725983552122,4.5009,2328.2,2327.7,0.3959]
[1725983552321,4.5131,2328.7,2327.8,4.296]
[1725983552517,4.12,2328.7,2327.8,1.07392]
[1725983552834,4.12,2328.7,2328.2,0.45806742]
[1725983553223,4.12,2328.7,2328.4,0.42945]
[1725983553530,0.3961,2328.8,2328.5,0.42943]
[1725983553721,0.3961,2328.8,2328.4,0.42945]
[1725983553918,0.3961,2328.8,2328.6,0.02858742]
[1725983554933,0.3931,2329.1,2328.7,0.02858742]
[1725983555323,4.5141,2329.0,2328.7,0.02858742]
[1725983555724,0.3931,2329.1,2328.9,0.42936]
[1725983555926,0.3941,2329.5,2329.4,0.42927]
[1725983556122,4.487,2329.9,2329.1,0.3825]
[1725983556321,0.3853,2329.8,2329.1,0.3825]
[1725983556525,0.3853,2329.8,2329.3,0.42929]
[1725983556526,0.81451,2329.8,2329.3,0.42929]
[1725983557031,0.81451,2329.8,2329.5,0.02858742]
[1725983557032,0.3853,2329.8,2329.5,0.02858742]
[1725983557726,0.8145,2329.8,2329.5,0.02858742]
[1725983557934,0.3853,2329.8,2329.6,0.02858742]
[1725983558133,0.8145,2329.8,2329.6,0.02858742]
[1725983558522,0.42921,2329.7,2329.6,0.02858742]
[1725983558727,0.3853,2329.8,2329.6,0.02858742]
[1725983558927,0.42921,2329.7,2329.6,0.02858742]
[1725983559127,0.3853,2329.8,2329.6,0.02858742]
[1725983559533,0.8145,2329.8,2329.6,0.02858742]
[1725983559927,0.3853,2329.8,2329.6,0.02858742]
[1725983560136,0.3853,2329.8,2329.7,0.02858742]
[1725983560137,0.81451,2329.8,2329.7,0.02858742]
[1725983560330,4.12,2330.2,2329.7,0.02858742]
[1725983560526,0.42919,2329.9,2329.7,0.02858742]
[1725983560833,10.92149839,2330.1,2329.7,0.02858742]
[1725983561022,0.3745,2330.1,2329.7,0.02858742]
[1725983561223,0.80364,2330.1,2329.9,0.02858742]
[1725983561427,0.3745,2330.1,2329.9,0.02858742]
[1725983562234,0.3745,2330.1,2330.0,0.02858742]
[1725983564335,0.3952,2330.3,2330.0,0.02858742]
[1725983564535,0.82431,2330.3,2330.0,0.02858742]
[1725983564738,0.42912,2330.2,2330.0,0.02858742]
[1725983565132,0.82432,2330.3,2330.0,0.02858742]
[1725983565329,0.3952,2330.3,2330.1,0.02858742]
[1725983565530,0.3675,2330.4,2330.3,0.4291]
[1725983565727,0.3675,2330.4,2330.2,0.42912]
[1725983565940,0.3675,2330.4,2330.3,0.4291]
[1725983566139,1.44024,2330.4,2330.1,0.02858742]
[1725983566336,0.3675,2330.4,2329.6,0.7723]
[1725983566542,4.12,2330.2,2329.6,0.7723]
[1725983566934,4.12,2330.2,2329.8,0.42919]
[1725983567130,4.54913,2330.2,2329.9,0.42917]
[1725983567440,4.54913,2330.2,2329.8,0.42918]
[1725983567627,4.54913,2330.2,2329.6,0.7723]
[1725983567829,0.3675,2330.4,2329.6,0.7723]
[1725983568037,0.3675,2330.4,2330.2,0.42911]
[1725983568242,0.3675,2330.4,2330.2,0.42912]
[1725983568641,0.79659,2330.4,2329.6,1.84535]
[1725983568844,0.79659,2330.4,2330.1,0.42913]
[1725983569044,0.3675,2330.4,2330.2,0.42912]
[1725983569645,0.3675,2330.4,2330.3,0.4291]
[1725983570939,4.5219,2330.8,2330.5,0.42906]
[1725983571140,0.3822,2330.7,2330.2,0.21387114]
[1725983571344,0.81123,2330.7,2330.3,0.4291]
[1725983571641,4.12,2330.5,2329.8,0.3771]
[1725983571847,0.4291,2330.4,2330.0,0.42916]
[1725983572139,0.4291,2330.3,2330.0,0.42916]
[1725983572343,0.42911,2330.3,2329.9,0.42917]
[1725983572540,0.3863,2330.2,2329.9,0.42917]
[1725983573047,0.3863,2330.2,2329.6,0.7723]
[1725983573236,0.3863,2330.2,2330.0,0.42915]
[1725983573732,0.3863,2330.2,2329.6,1.84537]
[1725983573934,0.3863,2330.2,2330.0,0.42914]
[1725983574139,0.3863,2330.2,2329.6,1.84537]
[1725983574339,0.3863,2330.2,2329.7,1.07304]
[1725983574646,0.3863,2330.2,2330.1,0.42914]
[1725983577838,0.4019,2330.8,2330.3,40.8]
[1725983578036,0.4019,2330.8,2330.6,0.42903]
[1725983578236,0.4019,2330.8,2330.3,40.8]
[1725983578440,0.4019,2330.8,2330.6,0.42904]
[1725983578638,0.4019,2330.8,2330.7,0.42903]
[1725983579041,0.4019,2330.8,2330.3,40.8]
[1725983579351,0.4019,2330.8,2330.7,0.42903]
[1725983579841,0.4019,2330.8,2330.6,0.42904]
[1725983580047,0.4019,2330.8,2330.7,0.42903]
[1725983580246,0.4019,2330.8,2330.2,0.7735]
[1725983580445,0.4019,2330.8,2329.9,1.07291]
[1725983580750,0.4019,2330.8,2330.7,0.42903]
[1725983581043,0.3862,2331.1,2330.9,0.42899]
[1725983581247,1.46144,2331.3,2331.0,0.42897]
[1725983581248,0.81802,2331.3,2331.0,0.42897]
[1725983581446,0.81802,2331.3,2330.6,1.07261]
[1725983581447,0.42894,2331.2,2330.6,1.84131]
[1725983581648,0.42894,2331.2,2331.0,0.42897]
[1725983581947,0.42895,2331.2,2330.6,0.7687]
[1725983582240,0.429,2330.9,2330.6,0.7687]
[1725983582445,1.0724,2331.1,2330.6,0.372]
[1725983582642,0.429,2330.9,2330.6,0.372]
[1725983582844,1.07244,2331.0,2330.6,0.372]
[1725983583144,0.42902,2330.8,2330.5,0.42905]
[1725983583348,4.4977,2330.9,2330.2,0.59622803]
[1725983583545,0.381,2330.7,2330.5,0.42906]
[1725983584047,0.381,2330.7,2330.2,0.59854583]
[1725983584048,0.42906,2330.6,2330.2,0.59854583]
[1725983584347,0.42905,2330.6,2330.4,0.42908]
[1725983584555,0.381,2330.7,2330.5,0.42905]
[1725983584846,0.381,2330.7,2330.2,0.59854583]
[1725983585154,0.381,2330.7,2330.5,0.42905]
[1725983585343,0.80671,2330.9,2330.3,1.07276]
[1725983585547,0.80671,2330.9,2330.8,0.42901]
[1725983585548,0.3777,2330.9,2330.8,0.42901]
[1725983585747,0.3777,2330.9,2330.2,42.47133583]
[1725983585748,4.4977,2330.9,2329.8,0.216]
[1725983585948,4.4977,2330.9,2329.6,1.07307]
[1725983585949,4.12,2330.5,2329.5,0.4021]
[1725983586247,0.42911,2330.3,2329.9,0.42916]
[1725983586648,0.42911,2330.3,2329.9,0.42917]
[1725983586946,0.42911,2330.3,2329.8,0.42918]
[1725983586947,0.42912,2330.3,2329.8,0.42918]
[1725983587142,0.42912,2330.3,2329.9,0.42917]
[1725983587339,11.4802664,2330.4,2329.5,41.5865]
[1725983587638,0.7777,2330.4,2330.1,0.42913]
[1725983587842,0.7777,2330.4,2329.5,41.5865]
[1725983588040,4.8977,2330.4,2329.6,0.42923]
[1725983588248,4.8977,2330.4,2329.8,0.42919]
[1725983588444,4.8977,2330.4,2329.5,41.5865]
[1725983588445,0.7777,2330.4,2330.0,0.42914]
[1725983588653,0.7777,2330.4,2329.6,1.07309]
[1725983588847,0.7777,2330.4,2329.9,0.42917]
[1725983589150,0.7777,2330.4,2330.1,0.42913]
[1725983589448,0.7777,2330.4,2330.2,0.42912]
[1725983589641,1.2068,2330.4,2329.9,0.42916]
[1725983589841,0.7777,2330.4,2329.5,41.5865]
[1725983590042,1.20679,2330.4,2329.9,0.42916]
[1725983590246,0.42911,2330.3,2329.9,0.42916]
[1725983590750,0.7777,2330.4,2330.0,0.42915]
[1725983591148,1.20679,2330.4,2330.0,0.42915]
[1725983592350,1.20679,2330.4,2329.5,42.6596]
[1725983592351,0.7777,2330.4,2329.5,42.6596]
[1725983592548,0.42913,2330.2,2329.8,0.42918]
[1725983592748,0.7777,2330.4,2329.5,41.5865]
[1725983592944,0.42912,2330.2,2329.5,41.5865]
[1725983593153,0.42912,2330.3,2329.9,0.42917]
[1725983593451,0.42912,2330.2,2329.9,0.42917]
[1725983593648,0.42911,2330.3,2329.5,41.5865]
[1725983593844,0.7777,2330.4,2330.2,0.42911]
[1725983594039,0.7777,2330.4,2329.6,1.07306]
[1725983594353,0.3887,2330.4,2330.3,0.4291]
[1725983594560,4.12,2331.3,2330.3,0.21587489]
[1725983594750,1.07263,2330.6,2330.1,0.21666902]
[1725983595057,1.07263,2330.6,2329.3,0.6157]
[1725983595058,1.07281,2330.2,2329.3,0.6157]
[1725983595256,1.07281,2330.2,2329.3,0.3997]
[1725983595257,4.5094,2330.1,2329.3,0.3997]
[1725983595441,0.4292,2329.8,2329.5,0.42925]
[1725983595749,5.58228,2330.1,2329.5,0.42925]
[1725983595750,1.45423,2330.0,2329.5,0.42925]
[1725983595954,0.42919,2329.9,2329.6,0.42923]
[1725983596151,0.81047,2330.0,2329.4,40.8]
[1725983596451,0.3813,2330.0,2329.8,0.42919]
[1725983596651,0.3813,2330.0,2329.4,40.8]
[1725983596859,0.4292,2329.8,2329.5,0.42924]
[1725983597543,0.42921,2329.8,2329.5,0.42925]
[1725983597744,0.3813,2330.0,2329.4,40.8]
[1725983597941,0.42918,2329.9,2329.6,0.42922]
[1725983598251,0.42922,2329.7,2329.4,41.22926]
[1725983598551,1.45422,2330.0,2328.9,0.42935]
[1725983598552,1.0732,2329.4,2328.9,0.42935]
[1725983598756,1.85664,2329.3,2328.6,1.48576234]
[1725983599058,1.85664,2329.3,2328.7,0.5052662]
[1725983599248,0.42935,2329.0,2328.6,0.80071]
[1725983599447,1.85664,2329.3,2328.8,0.42937]
[1725983599448,0.42933,2329.1,2328.8,0.42937]
[1725983599658,0.42932,2329.2,2328.9,0.42935]
[1725983600161,0.42932,2329.2,2328.6,0.3713]
[1725983600362,0.42932,2329.2,2328.8,0.42937]
[1725983600554,0.42932,2329.2,2328.7,0.67109116]
[1725983600555,0.7834,2329.3,2328.9,0.42936]
[1725983600855,1.21269,2329.3,2328.9,0.42935]
[1725983601153,1.21269,2329.3,2328.6,0.3713]
[1725983601353,1.21269,2329.3,2328.9,0.42934]
[1725983601946,0.7834,2329.3,2328.6,0.3713]
[1725983602145,4.12,2329.2,2328.7,1.17636082]
[1725983602353,4.12,2329.2,2328.6,0.42941]
[1725983602354,0.42937,2328.9,2328.6,0.42941]
[1725983602657,4.12,2329.2,2328.5,40.8]
[1725983602658,5.19329,2329.2,2328.5,40.8]
[1725983602852,0.42934,2329.1,2328.7,0.42939]
[1725983603047,0.42932,2329.2,2328.3,1.11446234]
[1725983603243,0.7834,2329.3,2328.5,1.07359]
[1725983603244,1.21269,2329.3,2328.5,1.07359]
[1725983603447,1.21269,2329.3,2328.9,0.42935]
[1725983603749,1.21269,2329.3,2328.6,0.4015]
[1725983603750,0.42931,2329.2,2328.8,0.42937]
[1725983603950,0.42933,2329.1,2328.7,0.42938]
[1725983604151,0.7834,2329.3,2328.7,0.42938]
[1725983604351,0.42934,2329.1,2328.6,0.4015]
[1725983604555,0.7834,2329.3,2328.7,0.50529154]
[1725983604752,0.7834,2329.3,2328.5,1.0737989]
[1725983604753,4.9034,2329.3,2328.5,1.0737989]
[1725983604953,0.42937,2328.9,2328.6,0.93470242]
[1725983605160,0.42937,2328.9,2328.6,0.42941]
[1725983605555,0.42937,2328.9,2328.3,41.1914]
[1725983605556,0.3911,2328.8,2328.3,41.1914]
[1725983605756,0.3911,2328.8,2328.3,40.8]
[1725983605955,0.4294,2328.7,2328.4,0.42944]
[1725983606260,0.4294,2328.7,2328.3,40.8]
[1725983606261,0.3911,2328.8,2328.3,40.8]
[1725983606756,0.82049,2328.8,2328.5,0.42942]
[1725983606956,0.3911,2328.8,2328.4,0.42944]
[1725983607153,0.42941,2328.7,2328.4,0.42944]
[1725983607354,0.82049,2328.8,2328.5,0.42943]
[1725983607669,1.07334,2329.1,2328.6,0.42941]
[1725983607854,0.42936,2328.9,2328.6,0.42941]
[1725983608059,0.42936,2329.0,2328.3,40.8]
[1725983608257,0.42936,2328.9,2328.6,0.4294]
[1725983608659,0.42938,2328.8,2328.5,0.42942]
[1725983608853,0.42937,2328.9,2328.6,0.42941]
[1725983609067,1.46534,2329.1,2328.5,0.42942]
[1725983609068,0.42938,2328.8,2328.5,0.42942]
[1725983609258,1.46534,2329.1,2328.3,40.8]
[1725983609565,1.07343,2328.9,2328.3,41.22946]
[1725983609949,0.42945,2328.4,2328.3,40.8]
[1725983610159,0.42945,2328.5,2328.0,0.4016]
[1725983610369,0.392,2328.4,2328.0,0.4016]
[1725983610565,0.392,2328.4,2328.2,0.42948]
[1725983610863,0.392,2328.4,2328.3,0.42947]
[1725983611059,0.392,2328.4,2328.2,0.42948]
[1725983611369,0.42948,2328.3,2328.0,0.42951]
[1725983611558,0.392,2328.4,2327.7,0.3952]
[1725983611758,0.392,2328.4,2327.8,0.42956]
[1725983611759,0.42952,2328.1,2327.8,0.42956]
[1725983611959,0.42952,2328.1,2327.7,0.3952]
[1725983611960,0.77,2328.4,2327.7,0.3952]
[1725983612159,0.42948,2328.3,2328.0,0.42953]
[1725983612360,0.42947,2328.3,2328.0,0.42953]
[1725983612561,1.84366,2328.4,2327.7,0.3952]
[1725983612866,0.42948,2328.3,2328.0,0.42952]
[1725983613059,0.77,2328.4,2327.7,0.3952]
[1725983613261,0.42949,2328.2,2327.9,0.42953]
[1725983613461,0.77,2328.4,2327.8,0.42955]
[1725983613659,0.392,2328.4,2328.1,0.42951]
[1725983613860,0.82147,2328.4,2328.1,0.42951]
[1725983614159,0.82147,2328.4,2328.1,0.4295]
[1725983614360,1.07344,2328.9,2328.0,1.07381]
[1725983614554,0.42942,2328.6,2328.1,0.8088]
[1725983614760,0.42942,2328.6,2328.3,0.42946]
[1725983614955,0.3964,2328.8,2328.2,1.07373]
[1725983615179,5.9896,2329.2,2328.3,1.46987]
[1725983615468,0.42932,2329.1,2328.3,0.3962]
[1725983615662,0.7903,2329.2,2328.3,0.3962]
[1725983615972,0.7903,2329.2,2328.4,1.07364]
[1725983616168,0.7903,2329.2,2328.9,0.42935]
[1725983616373,0.42928,2329.4,2329.0,0.42934]
[1725983616668,0.7903,2329.5,2328.8,0.21193176]
[1725983616965,0.42922,2329.7,2328.9,0.7771]
[1725983617157,8.264,2329.8,2329.3,0.42927]
[1725983617158,4.12,2329.8,2329.3,0.42927]
[1725983617471,0.3939,2330.0,2328.9,0.99582046]
[1725983617659,0.4292,2329.8,2329.3,0.42928]
[1725983617856,0.3939,2330.0,2329.0,1.07335]
[1725983618056,4.12,2330.7,2329.3,1.07323]
[1725983618267,4.12,2330.7,2330.0,0.42915]
[1725983618462,0.42907,2330.6,2330.0,0.42915]
[1725983618664,4.12,2330.7,2329.6,0.3937]
[1725983619170,4.12,2330.7,2329.8,0.42918]
[1725983619477,0.42906,2330.6,2329.6,0.3937]
[1725983619768,4.12,2330.7,2329.9,0.42916]
[1725983619970,0.42907,2330.5,2329.6,0.3937]
[1725983620270,0.4291,2330.4,2329.8,0.42918]
[1725983620472,0.42908,2330.5,2329.9,0.42916]
[1725983620664,0.42908,2330.5,2329.6,0.3937]
[1725983620967,4.12,2330.7,2329.6,0.3937]
[1725983620968,1.07263,2330.6,2329.6,0.3937]
[1725983621170,0.42912,2330.3,2329.7,0.4292]
[1725983621368,4.12,2330.7,2330.0,0.42915]
[1725983621369,0.42907,2330.5,2330.0,0.42915]
[1725983621562,4.12,2330.7,2330.0,40.8]
[1725983621563,0.4291,2330.3,2330.0,40.8]
[1725983621765,4.12,2330.7,2330.0,40.8]
[1725983622067,4.12,2330.7,2329.9,0.42917]
[1725983622365,0.42907,2330.5,2330.0,0.42914]
[1725983622573,0.42907,2330.5,2329.7,40.8]
[1725983622760,0.7696,2330.8,2329.7,41.87301]
[1725983622961,0.7696,2330.8,2330.5,0.42906]
[1725983623573,0.401,2331.3,2330.4,40.8]
[1725983623765,0.401,2331.3,2330.4,41.2025]
[1725983623961,1.47332,2331.3,2330.4,41.2025]
[1725983624165,0.42899,2331.0,2330.5,0.42906]
[1725983624361,0.42899,2331.0,2330.6,0.42905]
[1725983624670,0.42899,2330.9,2330.5,0.42906]
[1725983624977,4.12,2331.1,2330.4,41.2025]
[1725983625270,4.12,2331.1,2330.4,0.4025]
[1725983625468,0.42905,2330.6,2330.4,0.4025]
[1725983625770,11.8279024,2331.0,2330.3,0.42909]
[1725983625971,0.42901,2330.8,2330.3,0.42909]
[1725983626468,0.3736,2330.9,2330.3,0.4291]
[1725983626469,0.42903,2330.7,2330.3,0.4291]
[1725983626867,11.12427651,2330.8,2330.3,0.4291]
[1725983627065,0.42904,2330.7,2330.3,0.4291]
[1725983627468,0.42909,2330.4,2330.1,0.59568639]
[1725983627670,4.12,2330.5,2329.9,0.42917]
[1725983627875,0.4291,2330.3,2329.8,0.93425079]
[1725983628173,0.4291,2330.3,2329.9,0.42918]
[1725983628573,0.8148,2330.4,2329.9,0.42918]
[1725983628973,0.3857,2330.4,2330.0,0.42915]
[1725983629174,0.81479,2330.4,2330.0,0.42915]
[1725983629471,0.3857,2330.4,2329.8,0.50507079]
[1725983629671,0.3857,2330.4,2330.1,0.42913]
[1725983629875,0.3857,2330.4,2329.9,0.3991]
[1725983630077,0.3857,2330.4,2330.1,0.42913]
[1725983630267,0.3857,2330.4,2330.2,0.42912]
[1725983630472,0.3891,2330.7,2330.0,0.3829]
[1725983630673,0.42906,2330.6,2330.0,0.3829]
[1725983630973,0.42908,2330.4,2329.8,0.93425079]
[1725983631165,0.3849,2330.3,2329.8,0.50507079]
[1725983631369,0.42907,2330.5,2330.1,0.42913]
[1725983631567,4.5049,2330.6,2329.8,0.50507079]
[1725983631774,0.42908,2330.5,2330.1,0.42913]
[1725983632582,0.4291,2330.3,2329.9,0.42916]
[1725983632775,0.42908,2330.5,2330.1,0.42913]
[1725983632976,0.3849,2330.6,2330.3,0.4291]
[1725983633175,0.42906,2330.6,2330.2,0.42911]
[1725983633375,0.42906,2330.6,2330.3,0.4291]
[1725983633578,5.19251,2330.9,2330.3,0.4291]
[1725983633579,0.42904,2330.7,2330.3,0.4291]
[1725983634281,0.42906,2330.6,2330.2,0.42911]
[1725983634468,0.42908,2330.5,2330.1,0.42914]
[1725983634674,0.42908,2330.5,2330.2,0.42912]
[1725983634885,0.42908,2330.5,2330.1,0.42913]
[1725983635079,0.42904,2330.7,2330.3,0.4291]
[1725983635386,0.42904,2330.7,2329.9,1.07293]
[1725983635589,0.42904,2330.7,2330.3,0.42909]
[1725983635781,0.42902,2330.8,2330.0,0.3811]
[1725983636080,4.12,2330.9,2330.1,0.4043]
[1725983636277,0.42902,2330.8,2330.4,0.42907]
[1725983636473,0.42902,2330.8,2330.5,0.42907]
[1725983636676,0.4051,2331.0,2330.2,0.21341306]
[1725983636889,0.83408,2331.0,2330.7,0.42903]
[1725983637187,0.42901,2330.8,2330.5,0.42906]
[1725983637387,0.4051,2331.0,2330.7,0.42903]
[1725983637586,0.83408,2331.0,2330.7,0.42903]
[1725983637783,0.83408,2331.0,2330.7,0.42902]
[1725983637988,0.83408,2331.0,2330.6,0.42904]
[1725983637989,0.429,2330.9,2330.6,0.42904]
[1725983638383,0.83409,2331.0,2330.7,0.42903]
[1725983638584,0.429,2330.9,2330.7,0.42903]
[1725983638785,0.83409,2331.0,2330.7,0.42903]
[1725983638978,0.83409,2331.0,2330.3,1.44653]
[1725983638979,0.42901,2330.8,2330.6,0.42904]
[1725983639291,0.429,2330.9,2330.7,0.42903]
[1725983639986,5.59757,2331.0,2330.2,1.07279]
[1725983640191,0.42907,2330.5,2330.3,0.42909]
[1725983640382,0.42906,2330.6,2330.4,0.42907]
[1725983640581,0.42907,2330.5,2330.4,0.42907]
[1725983640788,0.376,2330.5,2330.4,0.42907]
[1725983640989,0.81234,2330.7,2330.5,0.42906]
[1725983641189,0.81234,2330.7,2330.1,0.4043]
[1725983641190,1.07264,2330.6,2330.1,0.4043]
[1725983641391,4.12,2330.4,2329.6,40.8]
[1725983641582,0.3881,2330.3,2329.4,0.3883]
[1725983641889,0.3881,2330.3,2330.1,0.42914]
[1725983642075,0.3881,2330.3,2329.7,1.07304]
[1725983642276,0.3881,2330.3,2330.1,0.42913]
[1725983642488,0.3881,2330.3,2329.8,0.3785]
[1725983642877,0.3881,2330.3,2330.2,0.42912]
[1725983643084,0.81234,2330.7,2330.0,1.07287]
[1725983643388,0.42907,2330.5,2330.2,0.42912]
[1725983643587,0.42911,2330.3,2330.0,0.42916]